fUST/lending_fUST_20251212
["ID","MTS","AMOUNT","RATE_DAILY","PERIOD"]
[398347908,1765538395458,208.0380135,8.422e-05,2]
[398347909,1765538403302,2140.97,8.422e-05,2]
[398347910,1765538418486,5000.0,8.422e-05,2]
[398347911,1765538440889,2651.0019865,8.422e-05,2]
[398347912,1765538440915,2348.9980135,8.422e-05,2]
[398347913,1765538450368,150.0,7.262e-05,2]
[398347914,1765538450833,258.48,7.922e-05,2]
[398347915,1765538463308,5000.0,8.422e-05,2]
[398347917,1765538486513,2242.5319865,8.422e-05,2]
[398347918,1765538489502,-2757.4680135,8.422e-05,2]
[398347919,1765538508569,4485.073973,8.422e-05,2]
[398347920,1765538508590,514.926027,8.422e-05,2]
[398347921,1765538529489,150.0,7.071e-05,2]
[398347922,1765538529903,267.22,7.714e-05,2]
[398347923,1765538530556,400.83,8.357e-05,2]
[398347924,1765538532451,5000.0,8.422e-05,2]
[398347925,1765538554971,3667.033973,8.422e-05,2]
[398347926,1765538554993,1332.966027,8.422e-05,2]
[398347927,1765538562786,5000.0,8.422e-05,2]
[398347928,1765538577875,3667.043973,8.422e-05,2]
[398347929,1765538577899,1332.956027,8.422e-05,2]
[398347930,1765538585684,5000.0,8.422e-05,2]
[398347931,1765538600898,3667.053973,8.422e-05,2]
[398347932,1765538600920,1332.946027,8.422e-05,2]
[398347933,1765538608643,155.71,7.258e-05,2]
[398347934,1765538608673,5000.0,8.422e-05,2]
[398347935,1765538609050,311.41,7.917e-05,2]
[398347936,1765538623895,3199.943973,8.422e-05,2]
[398347937,1765538623917,1800.056027,8.422e-05,2]
[398347938,1765538632360,5000.0,8.422e-05,2]
[398347939,1765538647526,5000.0,8.422e-05,2]
[398347940,1765538655501,0.01,8.422e-05,2]
[398347941,1765538655524,4999.99,8.422e-05,2]
[398347942,1765538670547,5000.0,8.422e-05,2]
[398347943,1765538679045,0.02,8.422e-05,2]
[398347944,1765538679071,4999.98,8.422e-05,2]
[398347945,1765538689286,156.48,7.269e-05,2]
[398347946,1765538689895,312.95,7.93e-05,2]
[398347947,1765538694123,4530.6,8.422e-05,2]
[398347948,1765538694148,469.4,8.422e-05,2]
[398347949,1765538702465,5000.0,8.422e-05,2]
[398347951,1765538718028,4530.61,8.422e-05,2]
[398347952,1765538718052,469.39,8.422e-05,2]
[398347953,1765538725732,5000.0,8.422e-05,2]
[398347954,1765538741350,4530.62,8.422e-05,2]
[398347955,1765538765579,-469.38,8.422e-05,2]
[398347956,1765538769873,157.73,7.266e-05,2]
[398347957,1765538770298,315.46,7.927e-05,2]
[398347959,1765538785134,5000.0,8.422e-05,2]
[398347960,1765538807487,3588.06,8.422e-05,2]
[398347961,1765538807511,1411.94,8.422e-05,2]
[398347962,1765538830255,5000.0,8.422e-05,2]
[398347964,1765538849213,158.37,7.258e-05,2]
[398347965,1765538849586,316.75,7.917e-05,2]
[398347966,1765538852953,3112.95,8.422e-05,2]
[398347967,1765538852978,1887.05,8.422e-05,2]
[398347970,1765538875225,5000.0,8.422e-05,2]
[398347973,1765538898154,3112.96,8.422e-05,2]
[398347974,1765538898179,1887.04,8.422e-05,2]
[398347977,1765538920959,5000.0,8.422e-05,2]
[398347980,1765538928800,3112.97,8.422e-05,2]
[398347981,1765538928822,1887.03,8.422e-05,2]
[398347982,1765538929352,153.08,7.269e-05,2]
[398347983,1765538929751,306.16,7.93e-05,2]
[398347984,1765538943963,5000.0,8.422e-05,2]
[398347985,1765538951766,2653.74,8.422e-05,2]
[398347986,1765538964371,-2346.26,8.422e-05,2]
[398347987,1765538967046,5000.0,8.419e-05,2]
[398347988,1765538974726,307.49,8.422e-05,2]
[398347989,1765538974749,4071.69,8.422e-05,2]
[398347990,1765538989679,5000.0,8.422e-05,2]
[398347991,1765538998525,928.32,8.422e-05,2]
[398347992,1765538998552,2759.33,8.422e-05,2]
[398347993,1765539009569,161.28,7.067e-05,2]
[398347994,1765539009997,322.55,7.71e-05,2]
[398347995,1765539010417,483.83,8.352e-05,2]
[398347996,1765539013528,5000.0,8.422e-05,2]
[398347997,1765539022039,1273.02,8.422e-05,2]
[398347998,1765539022062,3726.98,8.422e-05,2]
[398348029,1765539032485,-206.93270373,8.479e-05,2]
[398348030,1765539032495,-150.0,8.479e-05,2]
[398348031,1765539032505,-539.0,8.479e-05,2]
[398348032,1765539032515,-155.84580099,8.8e-05,2]
[398348033,1765539032564,-3.98419901,8.8e-05,2]
[398348034,1765539032573,-645.1,8.995e-05,2]
[398348035,1765539032581,-159.83,9.5e-05,2]
[398348036,1765539032590,-806.38,9.637e-05,2]
[398348037,1765539032599,-206.00087989,9.86e-05,2]
[398348038,1765539032608,-967.65,0.0001028,2]
[398348039,1765539032616,-159.83,0.000103,2]
[398348040,1765539032625,-177.0,0.00010479,2]
[398348041,1765539032634,-1128.93,0.00010922,2]
[398348042,1765539032642,-159.83,0.00011,2]
[398348043,1765539032651,-1200.0,0.00011095,2]
[398348044,1765539032660,-300.0,0.00011232,2]
[398348045,1765539032669,-300.0,0.00011232,2]
[398348046,1765539032678,-314.9817341,0.00011565,2]
[398348047,1765539032688,-975.2182659,0.00011565,2]
[398348048,1765539032697,-159.83,0.000118,2]
[398348049,1765539032706,-302.1267499,0.00011878,2]
[398348050,1765539032714,-300.0,0.00011894,2]
[398348051,1765539032723,-300.0,0.00011894,2]
[398348052,1765539032731,-300.0,0.00011894,2]
[398348053,1765539032741,-1451.48,0.00012207,2]
[398348054,1765539032750,-959.0,0.00012273,2]
[398348055,1765539032758,-2064.71367921,0.00012274,2]
[398348058,1765539038534,-5000.0,0.00011799,2]
[398348059,1765539038544,-574.12855637,0.00011918,2]
[398348060,1765539038553,-23287.76689079,0.00012274,2]
[398348061,1765539038562,-595.37131296,0.00012466,2]
[398348062,1765539038570,-197.72967695,0.00012479,2]
[398348063,1765539038579,-500.0,0.00012479,2]
[398348064,1765539038589,-500.0,0.00012479,2]
[398348065,1765539038598,-504.77685333,0.00012479,2]
[398348066,1765539038607,-500.0,0.00012479,2]
[398348067,1765539038616,-500.0,0.00012479,2]
[398348068,1765539038626,-500.0,0.00012479,2]
[398348069,1765539038635,-500.0,0.00012479,2]
[398348070,1765539038644,-500.0,0.00012479,2]
[398348071,1765539038653,-476.7682238,0.00012479,2]
[398348072,1765539038662,-500.0,0.00012479,2]
[398348073,1765539038671,-500.0,0.00012479,2]
[398348074,1765539038681,-500.0,0.00012479,2]
[398348075,1765539038690,-500.0,0.00012479,2]
[398348076,1765539038699,-500.0,0.00012479,2]
[398348077,1765539038708,-500.0,0.00012479,2]
[398348078,1765539038717,-500.0,0.00012479,2]
[398348079,1765539038726,-500.0,0.00012479,2]
[398348080,1765539038736,-500.0,0.00012479,2]
[398348081,1765539038744,-500.0,0.00012479,2]
[398348082,1765539038753,-500.0,0.00012479,2]
[398348083,1765539038762,-500.0,0.00012479,2]
[398348084,1765539038770,-500.0,0.00012479,2]
[398348085,1765539038779,-500.0,0.00012479,2]
[398348086,1765539038788,-500.0,0.00012479,2]
[398348087,1765539038798,-500.0,0.00012479,2]
[398348088,1765539038807,-510.44819537,0.00012479,2]
[398348089,1765539038815,-500.0,0.00012479,2]
[398348090,1765539038824,-500.0,0.00012479,2]
[398348091,1765539038833,-500.0,0.00012479,2]
[398348092,1765539038842,-500.0,0.00012479,2]
[398348093,1765539038851,-500.0,0.00012479,2]
[398348094,1765539038860,-500.0,0.00012479,2]
[398348095,1765539038869,-500.0,0.00012479,2]
[398348096,1765539038878,-500.0,0.00012479,2]
[398348097,1765539038887,-500.0,0.00012479,2]
[398348098,1765539038896,-500.0,0.00012479,2]
[398348099,1765539038906,-500.0,0.00012479,2]
[398348100,1765539038915,-500.0,0.00012479,2]
[398348101,1765539038925,-500.0,0.00012479,2]
[398348102,1765539038934,-500.0,0.00012479,2]
[398348103,1765539038944,-500.0,0.00012479,2]
[398348104,1765539038953,-500.0,0.00012479,2]
[398348105,1765539038962,-500.0,0.00012479,2]
[398348106,1765539038971,-500.0,0.00012479,2]
[398348107,1765539038981,-500.0,0.00012479,2]
[398348108,1765539038990,-500.0,0.00012479,2]
[398348109,1765539038999,-500.0,0.00012479,2]
[398348110,1765539039008,-500.0,0.00012479,2]
[398348111,1765539039018,-500.0,0.00012479,2]
[398348112,1765539039027,-500.0,0.00012479,2]
[398348113,1765539039036,-500.0,0.00012479,2]
[398348114,1765539039045,-500.0,0.00012479,2]
[398348115,1765539039054,-500.0,0.00012479,2]
[398348116,1765539039063,-500.0,0.00012479,2]
[398348117,1765539039072,-500.0,0.00012479,2]
[398348118,1765539039082,-500.0,0.00012479,2]
[398348119,1765539039091,-500.0,0.00012479,2]
[398348120,1765539039100,-500.0,0.00012479,2]
[398348121,1765539039109,-500.0,0.00012479,2]
[398348122,1765539039118,-500.0,0.00012479,2]
[398348123,1765539039128,-500.0,0.00012479,2]
[398348124,1765539039137,-500.0,0.00012479,2]
[398348125,1765539039147,-500.0,0.00012479,2]
[398348126,1765539039156,-500.0,0.00012479,2]
[398348127,1765539039166,-500.0,0.00012479,2]
[398348128,1765539039175,-500.0,0.00012479,2]
[398348129,1765539039184,-500.0,0.00012479,2]
[398348130,1765539039193,-500.0,0.00012479,2]
[398348131,1765539039202,-500.0,0.00012479,2]
[398348132,1765539039211,-500.0,0.00012479,2]
[398348133,1765539039221,-500.0,0.00012479,2]
[398348134,1765539039230,-500.0,0.00012479,2]
[398348135,1765539039239,-500.0,0.00012479,2]
[398348136,1765539039247,-500.0,0.00012479,2]
[398348137,1765539039256,-500.0,0.00012479,2]
[398348138,1765539039266,-500.0,0.00012479,2]
[398348139,1765539039275,-400.0,0.00012479,2]
[398348140,1765539039284,-500.0,0.00012479,2]
[398348141,1765539039293,-500.0,0.00012479,2]
[398348142,1765539039303,-500.0,0.00012479,2]
[398348143,1765539039312,-500.0,0.00012479,2]
[398348144,1765539039322,-500.0,0.00012479,2]
[398348145,1765539039331,-500.0,0.00012479,2]
[398348146,1765539039340,-500.0,0.00012479,2]
[398348147,1765539039349,-500.0,0.00012479,2]
[398348148,1765539039359,-204.0,0.00012479,2]
[398348149,1765539039367,-151.0,0.0001248,2]
[398348150,1765539039376,-151.0,0.0001248,2]
[398348151,1765539039385,-262.60432,0.0001248,2]
[398348152,1765539039394,-255.8243,0.0001248,2]
[398348153,1765539039403,-467368.35410624,0.00012481,2]
[398348154,1765539039415,-553.19985832,0.00012481,2]
[398348155,1765539039425,-1053.67641307,0.00012481,2]
[398348172,1765539040703,-28101.2518715,0.00012481,2]
[398348173,1765539040719,-1000.0,0.00012481,2]
[398348174,1765539040731,-2522.86261638,0.00012481,2]
[398348175,1765539040768,-1796.49584665,0.00012481,2]
[398348186,1765539043766,-26.8794244,0.00012481,2]
[398348187,1765539043914,-792.54,0.00012481,2]
[398348192,1765539046701,-1312.35,0.00012356,2]
[398348193,1765539046710,-58153.18826338,0.00012481,2]
[398348196,1765539087036,150.0,7.266e-05,2]
[398348197,1765539087445,150.0,7.926e-05,2]
[398348198,1765539163827,150.0,7.301e-05,2]
[398348199,1765539164217,150.0,7.964e-05,2]
[398348200,1765539240937,150.0,7.122e-05,2]
[398348201,1765539241312,150.0,7.769e-05,2]
[398348202,1765539241754,183.82,8.417e-05,2]
[398348203,1765539317627,150.0,7.318e-05,2]
[398348204,1765539318058,150.0,7.983e-05,2]
[398348205,1765539330245,-165.34,8.648e-05,2]
[398348206,1765539395239,150.0,7.122e-05,2]
[398348207,1765539395623,150.0,7.77e-05,2]
[398348208,1765539406164,-150.0,8.417e-05,2]
[398348209,1765539446544,5000.0,8.684e-05,2]
[398348210,1765539469787,5000.0,8.684e-05,2]
[398348211,1765539471480,0.01,7.076e-05,2]
[398348212,1765539471504,149.99,7.076e-05,2]
[398348213,1765539471879,150.0,7.719e-05,2]
[398348214,1765539472304,150.0,8.363e-05,2]
[398348215,1765539479144,192.85,8.675e-05,2]
[398348216,1765539479416,192.85,8.675e-05,2]
[398348217,1765539492638,5000.0,8.684e-05,2]
[398348218,1765539501070,3687.67,8.684e-05,2]
[398348219,1765539516829,476.65,8.684e-05,2]
[398348220,1765539516852,4523.35,8.684e-05,2]
[398348221,1765539524702,1933.15,8.684e-05,2]
[398348222,1765539540971,3543.51,8.684e-05,2]
[398348223,1765539540992,1456.49,8.684e-05,2]
[398348224,1765539544768,150.0,7.076e-05,2]
[398348225,1765539545191,150.0,7.719e-05,2]
[398348226,1765539545589,150.0,8.362e-05,2]
[398348227,1765539549592,4663.9708742,8.684e-05,2]
[398348228,1765539566015,3429.5491258,8.684e-05,2]
[398348229,1765539566046,1570.4508742,8.684e-05,2]
[398348230,1765539573817,5000.0,8.684e-05,2]
[398348231,1765539588955,3429.5591258,8.684e-05,2]
[398348232,1765539588980,1570.4408742,8.684e-05,2]
[398348233,1765539597048,5000.0,8.684e-05,2]
[398348234,1765539618644,150.0,7.081e-05,2]
[398348235,1765539619068,150.0,7.725e-05,2]
[398348236,1765539619149,-5000.0,8.637e-05,2]
[398348237,1765539619486,0.01,8.369e-05,2]
[398348238,1765539619511,179.69,8.369e-05,2]
[398348239,1765539634896,5000.0,8.637e-05,2]
[398348240,1765539651793,-1796.27,8.637e-05,2]
[398348241,1765539658509,5000.0,8.637e-05,2]
[398348242,1765539695248,-3203.73,8.551e-05,2]
[398348243,1765539697711,150.0,7.502e-05,2]
[398348244,1765539698072,150.0,8.184e-05,2]
[398348245,1765539710346,-5000.0,8.637e-05,2]
[398348246,1765539726149,0.01,8.637e-05,2]
[398348247,1765539726173,4999.99,8.637e-05,2]
[398348248,1765539740967,-4715.2191258,8.637e-05,2]
[398348249,1765539749821,569.5717484,8.637e-05,2]
[398348250,1765539749846,4430.4282516,8.637e-05,2]
[398348251,1765539758925,5000.0,8.637e-05,2]
[398348252,1765539773630,150.0,7.098e-05,2]
[398348253,1765539774524,150.0,7.744e-05,2]
[398348254,1765539774940,168.19,8.389e-05,2]
[398348255,1765539786601,-5000.0,8.551e-05,2]
[398348256,1765539801667,-5000.0,8.637e-05,2]
[398348257,1765539805836,0.01,8.637e-05,2]
[398348258,1765539805860,4999.99,8.637e-05,2]
[398348259,1765539832195,-3648.26,8.551e-05,2]
[398348260,1765539846786,150.0,7.628e-05,2]
[398348261,1765539847209,150.0,8.322e-05,2]
[398348262,1765539847281,-5000.0,8.637e-05,2]
[398348263,1765539877825,-5000.0,8.637e-05,2]
[398348264,1765539888556,0.01,8.637e-05,2]
[398348265,1765539888579,4999.99,8.637e-05,2]
[398348266,1765539911487,5000.0,8.534e-05,2]
[398348267,1765539924041,150.0,7.104e-05,2]
[398348268,1765539924156,150.0,7.749e-05,2]
[398348269,1765539924489,162.62,8.395e-05,2]
[398348270,1765539934324,5000.0,8.537e-05,2]
[398348271,1765539956204,4537.39,8.537e-05,2]
[398348272,1765539956227,462.61,8.537e-05,2]
[398348273,1765539978214,5000.0,8.537e-05,2]
[398348274,1765540000396,4537.4,8.537e-05,2]
[398348275,1765540000418,462.6,8.537e-05,2]
[398348276,1765540000885,150.0,7.086e-05,2]
[398348277,1765540001292,150.0,7.73e-05,2]
[398348278,1765540001687,192.36,8.375e-05,2]
[398348280,1765540022509,5000.0,8.537e-05,2]
[398348281,1765540044985,4045.05,8.537e-05,2]
[398348282,1765540045008,954.95,8.537e-05,2]
[398348283,1765540067643,5000.0,8.537e-05,2]
[398348284,1765540077782,150.0,7.084e-05,2]
[398348285,1765540078242,150.0,7.729e-05,2]
[398348286,1765540078640,194.61,8.373e-05,2]
[398348287,1765540090087,3550.45,8.537e-05,2]
[398348288,1765540090109,1449.55,8.537e-05,2]
[398348289,1765540098209,5000.0,8.537e-05,2]
[398348290,1765540113906,5000.0,8.537e-05,2]
[398348291,1765540121738,0.01,8.537e-05,2]
[398348292,1765540121762,4999.99,8.537e-05,2]
[398348293,1765540129767,5000.0,8.537e-05,2]
[398348294,1765540138036,0.02,8.537e-05,2]
[398348295,1765540138060,4999.98,8.537e-05,2]
[398348296,1765540146602,5000.0,8.537e-05,2]
[398348297,1765540153708,0.03,7.093e-05,2]
[398348298,1765540153739,149.97,7.093e-05,2]
[398348299,1765540154117,150.0,7.738e-05,2]
[398348300,1765540154531,201.8,8.383e-05,2]
[398348301,1765540155119,-150.0,8.68e-05,2]
[398348302,1765540155144,-542.0,8.724e-05,2]
[398348303,1765540155170,-269.06,9.027e-05,2]
[398348304,1765540155193,-300.0,9.702e-05,2]
[398348305,1765540155215,-9371.38657841,9.703e-05,2]
[398348306,1765540155630,5000.0,8.537e-05,2]
[398348307,1765540179766,4498.24,8.537e-05,2]
[398348308,1765540179786,501.76,8.537e-05,2]
[398348331,1765540231679,-258.43497498,8.625e-05,2]
[398348373,1765540233285,150.0,7.132e-05,2]
[398348374,1765540233673,150.0,7.781e-05,2]
[398348375,1765540234066,172.36,8.429e-05,2]
[398348423,1765540243031,-1102.80151647,8.625e-05,2]
[398348428,1765540246547,-2568.3774746,8.625e-05,2]
[398348429,1765540313070,150.0,7.083e-05,2]
[398348430,1765540313506,150.0,7.726e-05,2]
[398348431,1765540313935,154.33,8.37e-05,2]
[398348433,1765540355840,5000.0,8.537e-05,2]
[398348434,1765540364010,5000.0,8.537e-05,2]
[398348435,1765540372834,5000.0,8.539e-05,2]
[398348436,1765540380745,0.01,8.539e-05,2]
[398348437,1765540380767,4999.99,8.539e-05,2]
[398348438,1765540389169,5000.0,8.539e-05,2]
[398348439,1765540389334,0.02,7.082e-05,2]
[398348440,1765540389360,149.98,7.082e-05,2]
[398348441,1765540389738,150.0,7.726e-05,2]
[398348442,1765540390206,150.55,8.37e-05,2]
[398348443,1765540397539,5000.0,8.539e-05,2]
[398348444,1765540405585,4549.48,8.539e-05,2]
[398348445,1765540405609,450.52,8.539e-05,2]
[398348446,1765540413409,5000.0,8.539e-05,2]
[398348447,1765540421402,4549.49,8.539e-05,2]
[398348448,1765540421726,450.51,8.539e-05,2]
[398348449,1765540429233,5000.0,8.539e-05,2]
[398348450,1765540437959,4549.5,8.539e-05,2]
[398348451,1765540437983,450.5,8.539e-05,2]
[398348452,1765540445816,5000.0,8.539e-05,2]
[398348453,1765540453792,4549.51,8.539e-05,2]
[398348454,1765540453816,450.49,8.539e-05,2]
[398348455,1765540462353,5000.0,8.539e-05,2]
[398348456,1765540466263,150.0,7.321e-05,2]
[398348457,1765540466866,150.0,7.987e-05,2]
[398348458,1765540478341,5000.0,8.419e-05,2]
[398348459,1765540486427,4700.01,8.419e-05,2]
[398348460,1765540486449,299.99,8.419e-05,2]
[398348461,1765540502373,5000.0,8.419e-05,2]
[398348462,1765540510210,4700.02,8.419e-05,2]
[398348463,1765540510234,299.98,8.419e-05,2]
[398348464,1765540525219,5000.0,8.419e-05,2]
[398348465,1765540532997,4700.03,8.419e-05,2]
[398348466,1765540533021,299.97,8.419e-05,2]
[398348467,1765540542869,150.0,7.094e-05,2]
[398348468,1765540543313,150.0,7.739e-05,2]
[398348469,1765540543733,150.0,8.384e-05,2]
[398348470,1765540548468,5000.0,8.419e-05,2]
[398348471,1765540556604,4250.04,8.419e-05,2]
[398348472,1765540556627,749.96,8.419e-05,2]
[398348473,1765540571507,5000.0,8.419e-05,2]
[398348474,1765540579319,4250.05,8.419e-05,2]
[398348475,1765540579343,749.95,8.419e-05,2]
[398348476,1765540594287,5000.0,8.419e-05,2]
[398348478,1765540602182,4250.06,8.419e-05,2]
[398348479,1765540602204,749.94,8.419e-05,2]
[398348480,1765540616201,150.0,7.083e-05,2]
[398348481,1765540616682,150.0,7.727e-05,2]
[398348482,1765540617136,150.0,8.371e-05,2]
[398348483,1765540617602,5000.0,8.419e-05,2]
[398348484,1765540625908,3800.07,8.419e-05,2]
[398348485,1765540625935,1199.93,8.419e-05,2]
[398348486,1765540641318,5000.0,8.419e-05,2]
[398348487,1765540649086,3800.08,8.419e-05,2]
[398348488,1765540649108,1199.92,8.419e-05,2]
[398348489,1765540657577,5000.0,8.419e-05,2]
[398348490,1765540674334,901.96603395,8.419e-05,2]
[398348491,1765540682038,5000.0,8.421e-05,2]
[398348492,1765540688005,150.0,7.088e-05,2]
[398348493,1765540688402,150.0,7.732e-05,2]
[398348494,1765540688818,150.0,8.376e-05,2]
[398348495,1765540704996,4550.01,8.421e-05,2]
[398348496,1765540705019,449.99,8.421e-05,2]
[398348497,1765540719894,5000.0,8.421e-05,2]
[398348498,1765540764529,150.0,7.098e-05,2]
[398348499,1765540765126,150.0,7.743e-05,2]
[398348500,1765540765386,150.0,8.388e-05,2]
[398348501,1765540777421,4035.72,0.00014,29]
[398348502,1765540786042,2541.39,8.421e-05,2]
[398348503,1765540808045,1558.63,8.421e-05,2]
[398348504,1765540808071,899.98,8.421e-05,2]
[398348514,1765540838811,150.0,7.083e-05,2]
[398348515,1765540838917,150.0,7.727e-05,2]
[398348516,1765540839304,150.0,8.371e-05,2]
[398348518,1765540866269,5000.0,8.421e-05,2]
[398348519,1765540874088,1324.07661989,8.421e-05,2]
[398348520,1765540890355,2325.95338011,8.421e-05,2]
[398348521,1765540890378,2674.04661989,8.421e-05,2]
[398348522,1765540911412,150.0,7.082e-05,2]
[398348523,1765540911824,150.0,7.726e-05,2]
[398348524,1765540912283,150.0,8.37e-05,2]
[398348525,1765540913328,5000.0,8.421e-05,2]
[398348526,1765540928998,178.327881,5.132e-05,2]
[398348527,1765540935590,1697.63549911,8.421e-05,2]
[398348528,1765540935614,3302.36450089,8.421e-05,2]
[398348529,1765540943956,5000.0,8.421e-05,2]
[398348530,1765540959638,1697.64549911,8.421e-05,2]
[398348531,1765540959661,3302.35450089,8.421e-05,2]
[398348532,1765540981974,5000.0,8.421e-05,2]
[398348533,1765540983764,150.0,7.069e-05,2]
[398348534,1765540984196,150.0,7.712e-05,2]
[398348535,1765540984677,150.0,8.354e-05,2]
[398348536,1765540990124,1247.65549911,8.421e-05,2]
[398348537,1765540990421,1029.43450089,8.421e-05,2]
[398348538,1765541005779,5000.0,8.421e-05,2]
[398348539,1765541029546,3970.57549911,8.421e-05,2]
[398348540,1765541029574,1029.42450089,8.421e-05,2]
[398348541,1765541052052,5000.0,8.411e-05,2]
[398348542,1765541057853,150.0,7.591e-05,2]
[398348543,1765541058265,150.0,8.281e-05,2]
[398348544,1765541059843,4700.01,8.411e-05,2]
[398348545,1765541059871,299.99,8.411e-05,2]
[398348546,1765541075091,5000.0,8.411e-05,2]
[398348547,1765541082941,5000.0,8.411e-05,2]
[398348548,1765541098011,5000.0,8.411e-05,2]
[398348549,1765541106377,0.01,8.411e-05,2]
[398348550,1765541106400,4999.99,8.411e-05,2]
[398348551,1765541123270,5000.0,8.411e-05,2]
[398348552,1765541136700,0.02,7.41e-05,2]
[398348553,1765541136724,149.98,7.41e-05,2]
[398348554,1765541137084,227.68,8.084e-05,2]
[398348555,1765541145434,5000.0,8.411e-05,2]
[398348556,1765541168749,4622.35,8.411e-05,2]
[398348557,1765541168771,377.65,8.411e-05,2]
[398348558,1765541176529,471.29852333,8.411e-05,2]
[398348560,1765541191087,-195.28983511,8.53e-05,2]
[398348561,1765541191728,5000.0,8.411e-05,2]
[398348562,1765541200264,4151.06147667,8.411e-05,2]
[398348563,1765541200295,377.64,8.411e-05,2]
[398348564,1765541215415,5000.0,8.411e-05,2]
[398348565,1765541217873,225.24,6.986e-05,2]
[398348566,1765541218271,450.48,7.621e-05,2]
[398348567,1765541218901,675.73,8.256e-05,2]
[398348568,1765541223815,3270.92,8.411e-05,2]
[398348569,1765541223839,1729.08,8.411e-05,2]
[398348570,1765541239149,5000.0,8.411e-05,2]
[398348571,1765541254365,3270.93,8.411e-05,2]
[398348572,1765541254388,1729.07,8.411e-05,2]
[398348573,1765541262536,5000.0,8.411e-05,2]
[398348574,1765541270633,3270.94,8.411e-05,2]
[398348575,1765541270655,1729.06,8.411e-05,2]
[398348576,1765541278474,5000.0,8.411e-05,2]
[398348577,1765541283503,333.19,8.403e-05,2]
[398348578,1765541283772,333.19,8.403e-05,2]
[398348579,1765541286608,2604.57,8.411e-05,2]
[398348580,1765541286631,2395.43,8.411e-05,2]
[398348581,1765541295495,5000.0,8.411e-05,2]
[398348582,1765541303113,213.91,7.523e-05,2]
[398348583,1765541303526,427.83,8.207e-05,2]
[398348584,1765541311762,1962.84,8.411e-05,2]
[398348585,1765541311785,3037.16,8.411e-05,2]
[398348587,1765541319737,5000.0,8.411e-05,2]
[398348589,1765541335087,1962.85,8.411e-05,2]
[398348590,1765541343686,5000.0,8.411e-05,2]
[398348591,1765541349222,-3037.15,8.411e-05,2]
[398348592,1765541359520,3925.71,8.411e-05,2]
[398348593,1765541359544,1074.29,8.411e-05,2]
[398348594,1765541367435,5000.0,8.411e-05,2]
[398348595,1765541384118,3925.72,8.411e-05,2]
[398348596,1765541384144,1074.28,8.411e-05,2]
[398348597,1765541386028,217.3,7.033e-05,2]
[398348598,1765541386434,434.6,7.672e-05,2]
[398348599,1765541386835,651.9,8.311e-05,2]
[398348600,1765541391648,5000.0,8.411e-05,2]
[398348601,1765541406873,2621.93,8.411e-05,2]
[398348602,1765541406903,2378.07,8.411e-05,2]
[398348603,1765541415247,5000.0,8.411e-05,2]
[398348604,1765541431310,2621.94,8.411e-05,2]
[398348605,1765541431334,2378.06,8.411e-05,2]
[398348624,1765541431773,-150.0,8.531e-05,2]
[398348625,1765541431783,-500.0,8.531e-05,2]
[398348626,1765541431792,-350.0,8.531e-05,2]
[398348711,1765541437949,-150.0,8.531e-05,2]
[398348712,1765541437959,-500.0,8.531e-05,2]
[398348713,1765541437969,-260.73100734,8.531e-05,2]
[398348714,1765541439121,5000.0,8.411e-05,2]
[398348736,1765541443380,-239.26899266,8.531e-05,2]